[Event "British Rapidplay Championship 2023"]
[Site "Mercure Bradford, Bankfield Hotel"]
[Date "2023.04.16"]
[Round "9.9"]
[White "Ciuravin, Andrei"]
[Black "Edwards-Wright, Miles D"]
[Result "0-1"]
[TimeControl "15 minutes plus 10 seconds per move"]
[WhiteElo "2185"]
[BlackElo "1937"]

1. d4 {[%clk 00:15:19]} g6 {[%clk 00:15:19]} {[%emt 00:00:02]} 2. Nf3 {[%clk
00:15:26]} {[%emt 00:00:02]} Bg7 {[%clk 00:15:25]} {[%emt 00:00:04]} 3. c4
{[%clk 00:15:35]} {[%emt 00:00:02]} d6 {[%clk 00:15:33]} {[%emt 00:00:02]} 4.
Nc3 {[%clk 00:15:43]} {[%emt 00:00:02]} c6 {[%clk 00:15:35]} {[%emt 00:00:08]}
5. h3 {[%clk 00:15:50]} {[%emt 00:00:02]} Qc7 {[%clk 00:15:42]} {[%emt
00:00:04]} 6. Bf4 {[%clk 00:15:50]} {[%emt 00:00:10]} Nd7 {[%clk 00:15:46]}
{[%emt 00:00:06]} 7. e3 {[%clk 00:15:56]} {[%emt 00:00:04]} a6 {[%clk
00:15:47]} {[%emt 00:00:09]} 8. a4 {[%clk 00:16:00]} {[%emt 00:00:05]} Ngf6
{[%clk 00:15:50]} {[%emt 00:00:07]} 9. Be2 {[%clk 00:16:07]} {[%emt 00:00:03]}
O-O {[%clk 00:15:55]} {[%emt 00:00:06]} 10. Qc2 {[%clk 00:16:15]} {[%emt
00:00:01]} Re8 {[%clk 00:15:51]} {[%emt 00:00:15]} 11. O-O {[%clk 00:16:17]}
{[%emt 00:00:08]} e5 {[%clk 00:15:30]} {[%emt 00:00:31]} 12. dxe5 {[%clk
00:16:24]} {[%emt 00:00:02]} dxe5 {[%clk 00:15:38]} {[%emt 00:00:02]} 13. Bh2
{[%clk 00:16:33]} {[%emt 00:00:02]} a5 {[%clk 00:15:12]} {[%emt 00:00:37]} 14.
Rfd1 {[%clk 00:16:21]} {[%emt 00:00:21]} Nc5 {[%clk 00:15:14]} {[%emt
00:00:08]} 15. e4 {[%clk 00:13:47]} {[%emt 00:02:44]} Nfd7 {[%clk 00:14:49]}
{[%emt 00:00:35]} 16. Rab1 {[%clk 00:12:50]} {[%emt 00:01:07]} Na6 {[%clk
00:14:57]} {[%emt 00:00:02]} 17. Na2 {[%clk 00:12:41]} {[%emt 00:00:19]} Ndc5
{[%clk 00:14:48]} {[%emt 00:00:19]} 18. b4 {[%clk 00:12:40]} {[%emt 00:00:10]}
axb4 {[%clk 00:14:35]} {[%emt 00:00:24]} 19. Nxb4 {[%clk 00:12:49]} {[%emt
00:00:02]} Be6 {[%clk 00:13:52]} {[%emt 00:00:52]} 20. Na2 {[%clk 00:12:24]}
{[%emt 00:00:34]} f6 {[%clk 00:13:47]} {[%emt 00:00:15]} 21. Nd4 {[%clk
00:11:45]} {[%emt 00:00:49]} Bf7 {[%clk 00:13:21]} {[%emt 00:00:37]} 22. Nc3
{[%clk 00:09:35]} {[%emt 00:02:21]} Qa5 {[%clk 00:13:07]} {[%emt 00:00:23]} 23.
Nf3 {[%clk 00:07:42]} {[%emt 00:02:02]} Bf8 {[%clk 00:12:13]} {[%emt 00:01:04]}
24. g4 {[%clk 00:07:25]} {[%emt 00:00:28]} g5 {[%clk 00:11:36]} {[%emt
00:00:48]} 25. Ne1 {[%clk 00:06:41]} {[%emt 00:00:53]} Nb4 {[%clk 00:11:05]}
{[%emt 00:00:41]} 26. Qb2 {[%clk 00:06:37]} {[%emt 00:00:13]} Ne6 {[%clk
00:09:46]} {[%emt 00:01:29]} 27. Nd3 {[%clk 00:04:45]} {[%emt 00:02:02]} Nxd3
{[%clk 00:09:20]} {[%emt 00:00:37]} 28. Bxd3 {[%clk 00:04:53]} {[%emt
00:00:02]} Nc5 {[%clk 00:09:13]} {[%emt 00:00:16]} 29. Bf1 {[%clk 00:04:43]}
{[%emt 00:00:20]} Red8 {[%clk 00:08:44]} {[%emt 00:00:40]} 30. Bg3 {[%clk
00:03:20]} {[%emt 00:01:32]} Be6 {[%clk 00:06:43]} {[%emt 00:02:12]} 31. Kg2
{[%clk 00:03:15]} {[%emt 00:00:14]} Rxd1 {[%clk 00:06:30]} {[%emt 00:00:24]} 32.
Rxd1 {[%clk 00:03:22]} {[%emt 00:00:03]} Nxa4 {[%clk 00:06:29]} {[%emt
00:00:11]} 33. Nxa4 {[%clk 00:03:06]} {[%emt 00:00:26]} Qxa4 {[%clk 00:06:37]}
{[%emt 00:00:02]} 34. Rb1 {[%clk 00:02:36]} {[%emt 00:00:40]} b5 {[%clk
00:06:30]} {[%emt 00:00:17]} 35. cxb5 {[%clk 00:02:35]} {[%emt 00:00:11]} Qxe4+
{[%clk 00:06:27]} {[%emt 00:00:13]} 36. Kg1 {[%clk 00:02:44]} {[%emt 00:00:01]}
Bd5 {[%clk 00:06:22]} {[%emt 00:00:16]} 37. f3 {[%clk 00:01:00]} {[%emt
00:01:53]} Qxf3 {[%clk 00:06:24]} {[%emt 00:00:08]} 0-1

[Event "British Rapidplay Championship 2023"]
[Site "Mercure Bradford, Bankfield Hotel"]
[Date "2023.04.16"]
[Round "9.10"]
[White "Hall, James"]
[Black "Walker, David J"]
[Result "1-0"]
[TimeControl "15 minutes plus 10 seconds per move"]
[WhiteElo "1809"]
[BlackElo "2250"]

1. e4 {[%clk 00:15:12]} {[%emt 00:00:07]} e5 {[%clk 00:15:18]} {[%emt
00:00:02]} 2. Nf3 {[%clk 00:15:19]} {[%emt 00:00:04]} Nc6 {[%clk 00:15:26]}
{[%emt 00:00:02]} 3. d4 {[%clk 00:15:27]} {[%emt 00:00:01]} exd4 {[%clk
00:15:34]} {[%emt 00:00:02]} 4. Bc4 {[%clk 00:15:35]} {[%emt 00:00:02]} Nf6
{[%clk 00:15:43]} {[%emt 00:00:02]} 5. O-O {[%clk 00:15:43]} {[%emt 00:00:02]}
Nxe4 {[%clk 00:15:47]} {[%emt 00:00:05]} 6. Nc3 {[%clk 00:15:52]} {[%emt
00:00:02]} dxc3 {[%clk 00:15:27]} {[%emt 00:00:30]} 7. Bxf7+ {[%clk 00:15:58]}
{[%emt 00:00:03]} Kxf7 {[%clk 00:15:10]} {[%emt 00:00:28]} 8. Qd5+ {[%clk
00:16:07]} {[%emt 00:00:01]} Ke8 {[%clk 00:14:22]} {[%emt 00:00:58]} 9. Re1
{[%clk 00:16:15]} {[%emt 00:00:01]} Be7 {[%clk 00:11:59]} {[%emt 00:02:34]} 10.
Rxe4 {[%clk 00:16:12]} {[%emt 00:00:12]} Rf8 {[%clk 00:07:43]} {[%emt
00:04:27]} 11. Bg5 {[%clk 00:14:24]} {[%emt 00:01:57]} h6 {[%clk 00:05:15]}
{[%emt 00:02:40]} 12. Bxe7 {[%clk 00:13:13]} {[%emt 00:01:20]} Nxe7 {[%clk
00:05:24]} {[%emt 00:00:02]} 13. Qh5+ {[%clk 00:10:39]} {[%emt 00:02:43]} 1-0

[Event "British Rapidplay Championship 2023"]
[Site "Mercure Bradford, Bankfield Hotel"]
[Date "2023.04.16"]
[Round "9.12"]
[White "Bramson, Mike"]
[Black "Watson, Phil R"]
[Result "1-0"]
[TimeControl "15 minutes plus 10 seconds per move"]
[WhiteElo "1864"]
[BlackElo "2144"]

1. e4 {[%clk 00:15:17]} {[%emt 00:00:02]} c6 {[%clk 00:15:19]} {[%emt
00:00:02]} 2. d4 {[%clk 00:15:25]} {[%emt 00:00:02]} d5 {[%clk 00:15:28]}
{[%emt 00:00:01]} 3. Nc3 {[%clk 00:15:32]} {[%emt 00:00:02]} dxe4 {[%clk
00:15:37]} {[%emt 00:00:02]} 4. Bc4 {[%clk 00:15:40]} {[%emt 00:00:02]} Bf5
{[%clk 00:14:40]} {[%emt 00:01:07]} 5. f3 {[%clk 00:15:48]} {[%emt 00:00:02]}
Nf6 {[%clk 00:14:33]} {[%emt 00:00:18]} 6. fxe4 {[%clk 00:15:56]} {[%emt
00:00:02]} Bxe4 {[%clk 00:10:03]} {[%emt 00:04:39]} 7. Nxe4 {[%clk 00:15:44]}
{[%emt 00:00:22]} Nxe4 {[%clk 00:10:12]} {[%emt 00:00:02]} 8. Nf3 {[%clk
00:15:52]} {[%emt 00:00:01]} Nd6 {[%clk 00:10:04]} {[%emt 00:00:18]} 9. Bb3
{[%clk 00:15:58]} {[%emt 00:00:03]} g6 {[%clk 00:09:53]} {[%emt 00:00:21]} 10.
O-O {[%clk 00:15:57]} {[%emt 00:00:11]} Bg7 {[%clk 00:10:01]} {[%emt 00:00:03]}
11. Ne5 {[%clk 00:16:01]} {[%emt 00:00:05]} O-O {[%clk 00:10:01]} {[%emt
00:00:10]} 12. Qf3 {[%clk 00:15:36]} {[%emt 00:00:35]} e6 {[%clk 00:07:50]}
{[%emt 00:02:22]} 13. c3 {[%clk 00:15:25]} {[%emt 00:00:20]} Nd7 {[%clk
00:07:42]} {[%emt 00:00:17]} 14. Ng4 {[%clk 00:15:29]} {[%emt 00:00:07]} Nf5
{[%clk 00:05:34]} {[%emt 00:02:19]} 15. Qh3 {[%clk 00:14:59]} {[%emt 00:00:39]}
Qh4 {[%clk 00:05:20]} {[%emt 00:00:25]} 16. Qxh4 {[%clk 00:14:17]} {[%emt
00:00:52]} Nxh4 {[%clk 00:05:28]} {[%emt 00:00:02]} 17. Nh6+ {[%clk 00:14:20]}
{[%emt 00:00:06]} Bxh6 {[%clk 00:05:28]} {[%emt 00:00:10]} 18. Bxh6 {[%clk
00:14:28]} {[%emt 00:00:02]} Rfe8 {[%clk 00:05:34]} {[%emt 00:00:04]} 19. Rae1
{[%clk 00:14:23]} {[%emt 00:00:15]} a5 {[%clk 00:04:52]} {[%emt 00:00:53]} 20.
g4 {[%clk 00:13:27]} {[%emt 00:01:05]} a4 {[%clk 00:04:37]} {[%emt 00:00:27]}
21. Bc2 {[%clk 00:13:20]} {[%emt 00:00:16]} f6 {[%clk 00:04:24]} {[%emt
00:00:24]} 22. Re3 {[%clk 00:13:16]} {[%emt 00:00:13]} Re7 {[%clk 00:04:03]}
{[%emt 00:00:31]} 23. g5 {[%clk 00:13:04]} {[%emt 00:00:22]} Nf5 {[%emt
00:00:43]} 24. Bxf5 {[%clk 00:13:06]} {[%emt 00:00:01]} gxf5 {[%clk 00:03:43]}
{[%emt 00:00:05]} 25. Rxf5 {[%clk 00:13:12]} {[%emt 00:00:03]} fxg5 {[%clk
00:02:24]} {[%emt 00:01:29]} 26. Rxg5+ {[%clk 00:13:12]} {[%emt 00:00:10]} Kh8
{[%clk 00:02:31]} {[%emt 00:00:03]} 27. Reg3 {[%clk 00:12:50]} {[%emt
00:00:32]} Ra6 {[%clk 00:01:37]} {[%emt 00:01:05]} 28. Rg8# {[%clk 00:12:42]}
{[%emt 00:00:04]} 1-0

[Event "British Rapidplay Championship 2023"]
[Site "Mercure Bradford, Bankfield Hotel"]
[Date "2023.04.16"]
[Round "9.13"]
[White "Vijayakumar, Rishi"]
[Black "Quilter, Thomas A"]
[Result "1-0"]
[TimeControl "15 minutes plus 10 seconds per move"]
[WhiteElo "1770"]
[BlackElo "2134"]

1. d4 {[%clk 00:15:19]} {[%emt 00:00:01]} Nf6 {[%clk 00:15:14]} {[%emt
00:00:07]} 2. c4 {[%clk 00:15:27]} {[%emt 00:00:01]} d6 {[%clk 00:15:22]}
{[%emt 00:00:02]} 3. Nf3 {[%clk 00:15:36]} {[%emt 00:00:01]} Nc6 {[%clk
00:15:31]} {[%emt 00:00:02]} 4. Nc3 {[%clk 00:15:45]} {[%emt 00:00:01]} e5
{[%clk 00:15:40]} 5. d5 {[%clk 00:15:54]} Ne7 {[%clk 00:15:30]} {[%emt
00:00:20]} 6. e4 {[%clk 00:16:03]} g6 {[%clk 00:15:31]} {[%emt 00:00:09]} 7. h3
{[%clk 00:15:49]} {[%emt 00:00:24]} Bg7 {[%clk 00:15:40]} 8. Be3 {[%clk
00:15:53]} {[%emt 00:00:05]} O-O {[%clk 00:15:41]} {[%emt 00:00:09]} 9. Bd3
{[%clk 00:15:41]} {[%emt 00:00:22]} c6 {[%clk 00:15:41]} {[%emt 00:00:11]} 10.
O-O {[%clk 00:15:37]} {[%emt 00:00:14]} a6 {[%clk 00:15:49]} {[%emt 00:00:02]}
11. a4 {[%clk 00:15:36]} {[%emt 00:00:11]} Nh5 {[%clk 00:15:57]} {[%emt
00:00:02]} 12. b4 {[%emt 00:03:05]} f5 {[%clk 00:15:47]} 13. dxc6 {[%clk
00:08:41]} {[%emt 00:04:30]} bxc6 {[%clk 00:15:48]} {[%emt 00:00:09]} 14. Qb3
{[%clk 00:07:44]} {[%emt 00:01:07]} Kh8 {[%clk 00:12:17]} {[%emt 00:03:42]} 15.
Bg5 {[%clk 00:04:22]} {[%emt 00:03:31]} h6 {[%clk 00:11:56]} {[%emt 00:00:31]}
16. Bd2 {[%clk 00:02:48]} {[%emt 00:01:44]} d5 {[%clk 00:11:44]} {[%emt
00:00:23]} 17. cxd5 {[%clk 00:02:46]} {[%emt 00:00:12]} cxd5 {[%clk 00:11:53]}
18. Nxd5 {[%clk 00:02:40]} {[%emt 00:00:15]} Nxd5 {[%clk 00:12:02]} {[%emt
00:00:01]} 19. Qxd5 {[%clk 00:02:28]} {[%emt 00:00:23]} Qxd5 {[%clk 00:12:07]}
{[%emt 00:00:05]} 20. exd5 {[%clk 00:02:37]} {[%emt 00:00:01]} e4 {[%clk
00:12:16]} 21. Nh4 {[%clk 00:02:42]} {[%emt 00:00:04]} Bxa1 {[%clk 00:04:11]}
{[%emt 00:08:16]} 22. Nxg6+ {[%clk 00:02:32]} {[%emt 00:00:19]} Kg7 {[%clk
00:04:18]} {[%emt 00:00:03]} 23. Nxf8 {[%clk 00:02:38]} {[%emt 00:00:04]} Kxf8
{[%clk 00:03:33]} {[%emt 00:00:55]} 24. Be2 {[%clk 00:02:24]} {[%emt 00:00:24]}
Nf6 {[%clk 00:01:43]} {[%emt 00:01:59]} 25. Bxh6+ {[%clk 00:02:20]} {[%emt
00:00:15]} Ke7 {[%clk 00:01:33]} {[%emt 00:00:20]} 26. Rxa1 {[%clk 00:02:11]}
{[%emt 00:00:18]} Nxd5 {[%clk 00:01:42]} {[%emt 00:00:02]} 27. Bg5+ {[%clk
00:02:14]} {[%emt 00:00:07]} Kd6 {[%clk 00:01:46]} {[%emt 00:00:06]} 28. Rd1
{[%clk 00:02:15]} {[%emt 00:00:09]} Ke5 {[%clk 00:01:24]} {[%emt 00:00:32]} 29.
Bc1 {[%clk 00:01:03]} {[%emt 00:01:22]} Nxb4 {[%emt 00:00:42]} 30. Bb2+ {[%clk
00:01:09]} Ke6 {[%clk 00:00:40]} {[%emt 00:00:25]} 31. Bc4+ {[%clk 00:01:14]}
{[%emt 00:00:06]} Ke7 {[%clk 00:00:45]} {[%emt 00:00:05]} 32. Ba3 {[%clk
00:00:43]} {[%emt 00:00:41]} a5 {[%clk 00:00:45]} {[%emt 00:00:10]} 33. Rd5
{[%clk 00:00:35]} {[%emt 00:00:17]} Bd7 {[%clk 00:00:30]} {[%emt 00:00:25]} 34.
Rxa5 {[%clk 00:00:36]} {[%emt 00:00:09]} Rb8 {[%clk 00:00:17]} {[%emt
00:00:23]} 35. Bb5 {[%clk 00:00:36]} {[%emt 00:00:10]} Be6 {[%clk 00:00:13]}
{[%emt 00:00:14]} 36. Bxb4+ {[%clk 00:00:40]} {[%emt 00:00:05]} Kf6 {[%emt
00:00:06]} 37. Bc3+ {[%clk 00:00:46]} Kg5 {[%clk 00:00:28]} {[%emt 00:00:04]}
38. Ra6 {[%clk 00:00:49]} {[%emt 00:00:07]} Bf7 {[%clk 00:00:21]} {[%emt
00:00:16]} 39. Bd2+ {[%clk 00:00:28]} {[%emt 00:00:32]} f4 {[%clk 00:00:19]}
{[%emt 00:00:11]} 40. g3 {[%clk 00:00:35]} {[%emt 00:00:03]} e3 {[%clk
00:00:20]} {[%emt 00:00:09]} 41. fxe3 {[%clk 00:00:22]} {[%emt 00:00:22]} fxg3
{[%clk 00:00:24]} {[%emt 00:00:07]} 42. e4+ {[%clk 00:00:31]} {[%emt 00:00:01]}
Kh4 {[%clk 00:00:31]} {[%emt 00:00:03]} 43. Be2 {[%clk 00:00:21]} {[%emt
00:00:20]} g2 {[%clk 00:00:26]} {[%emt 00:00:15]} 44. Kxg2 {[%clk 00:00:15]}
{[%emt 00:00:16]} Rg8+ {[%clk 00:00:34]} {[%emt 00:00:02]} 45. Bg4 {[%clk
00:00:16]} {[%emt 00:00:09]} Bg6 {[%clk 00:00:40]} {[%emt 00:00:04]} 46. Be1+
{[%clk 00:00:20]} {[%emt 00:00:06]} Kg5 {[%clk 00:00:49]} 47. Ra5+ {[%clk
00:00:29]} {[%emt 00:00:02]} Kf4 {[%clk 00:00:57]} {[%emt 00:00:02]} 48. Bg3+
{[%clk 00:00:26]} {[%emt 00:00:14]} Ke3 {[%clk 00:01:05]} {[%emt 00:00:01]} 49.
Bf3 {[%clk 00:00:22]} {[%emt 00:00:14]} Rc8 {[%emt 00:00:03]} 50. Rc5 {[%clk
00:00:21]} {[%emt 00:00:10]} Rd8 {[%clk 00:01:15]} {[%emt 00:00:09]} 51. Bf2+
{[%clk 00:00:18]} {[%emt 00:00:13]} Kf4 {[%clk 00:01:22]} {[%emt 00:00:03]} 52.
Rc3 {[%clk 00:00:24]} {[%emt 00:00:05]} Rd2 {[%clk 00:01:25]} {[%emt 00:00:07]}
53. Re3 {[%clk 00:00:26]} {[%emt 00:00:07]} Ra2 {[%clk 00:01:26]} {[%emt
00:00:09]} 54. e5 {[%clk 00:00:31]} {[%emt 00:00:05]} Be8 {[%clk 00:01:22]}
{[%emt 00:00:13]} 55. Re4+ {[%clk 00:00:34]} {[%emt 00:00:08]} Kf5 {[%clk
00:01:31]} {[%emt 00:00:01]} 56. e6 {[%clk 00:00:41]} {[%emt 00:00:03]} Ra3
{[%clk 00:01:37]} {[%emt 00:00:04]} 57. e7 {[%clk 00:00:41]} {[%emt 00:00:10]}
Kf6 {[%clk 00:01:03]} {[%emt 00:00:44]} 58. h4 {[%clk 00:00:37]} {[%emt
00:00:14]} Kg6 {[%clk 00:00:38]} {[%emt 00:00:34]} 59. h5+ {[%clk 00:00:41]}
{[%emt 00:00:06]} Kg5 {[%clk 00:00:41]} {[%emt 00:00:07]} 60. Be3+ {[%clk
00:00:33]} {[%emt 00:00:18]} Kf6 {[%clk 00:00:44]} {[%emt 00:00:07]} 61. h6
{[%clk 00:00:37]} {[%emt 00:00:06]} Kg6 {[%clk 00:00:38]} {[%emt 00:00:17]} 62.
Re6+ {[%clk 00:00:33]} {[%emt 00:00:14]} Kf5 {[%clk 00:00:38]} {[%emt
00:00:10]} 63. h7 {[%clk 00:00:25]} {[%emt 00:00:16]} Ra2+ {[%clk 00:00:12]}
{[%emt 00:00:38]} 64. Kg3 {[%clk 00:00:17]} {[%emt 00:00:18]} Kxe6 {[%clk
00:00:15]} {[%emt 00:00:07]} 65. h8=Q {[%clk 00:00:25]} {[%emt 00:00:02]} Rxa4
{[%clk 00:00:15]} {[%emt 00:00:10]} 66. Qxe8 {[%clk 00:00:20]} {[%emt
00:00:14]} Ra7 {[%clk 00:00:22]} {[%emt 00:00:03]} 67. Bxa7 {[%clk 00:00:25]}
{[%emt 00:00:05]} 1-0

[Event "British Rapidplay Championship 2023"]
[Site "Mercure Bradford, Bankfield Hotel"]
[Date "2023.04.16"]
[Round "9.14"]
[White "Lau, Luke"]
[Black "Smith, Andrew P"]
[Result "1-0"]
[TimeControl "15 minutes plus 10 seconds per move"]
[WhiteElo "1917"]
[BlackElo "2125"]

1. e4 {[%clk 00:15:18]} {[%emt 00:00:02]} c5 {[%clk 00:15:13]} {[%emt
00:00:07]} 2. c3 {[%clk 00:15:27]} {[%emt 00:00:01]} d5 {[%clk 00:15:15]}
{[%emt 00:00:07]} 3. exd5 {[%clk 00:15:36]} {[%emt 00:00:02]} Qxd5 {[%clk
00:15:17]} {[%emt 00:00:08]} 4. d4 {[%clk 00:15:45]} e6 {[%clk 00:15:05]}
{[%emt 00:00:23]} 5. Nf3 {[%clk 00:15:51]} {[%emt 00:00:04]} Nf6 {[%clk
00:15:09]} {[%emt 00:00:06]} 6. Be3 {[%clk 00:15:34]} {[%emt 00:00:27]} cxd4
{[%clk 00:14:58]} {[%emt 00:00:21]} 7. cxd4 {[%clk 00:15:42]} {[%emt 00:00:02]}
Be7 {[%clk 00:14:38]} {[%emt 00:00:30]} 8. Nc3 {[%clk 00:15:47]} {[%emt
00:00:05]} Qa5 {[%clk 00:14:20]} {[%emt 00:00:28]} 9. Bd3 {[%clk 00:15:46]}
{[%emt 00:00:12]} O-O {[%clk 00:14:10]} {[%emt 00:00:19]} 10. O-O {[%clk
00:15:49]} {[%emt 00:00:06]} Nc6 {[%clk 00:12:00]} {[%emt 00:02:21]} 11. a3
{[%clk 00:15:53]} {[%emt 00:00:06]} Rd8 {[%clk 00:11:07]} {[%emt 00:01:03]} 12.
Qe2 {[%clk 00:15:00]} {[%emt 00:01:02]} Bd7 {[%clk 00:10:17]} {[%emt 00:01:00]}
13. Rad1 {[%clk 00:14:47]} {[%emt 00:00:23]} Rac8 {[%clk 00:09:42]} {[%emt
00:00:45]} 14. Ne4 {[%clk 00:12:50]} {[%emt 00:02:08]} Be8 {[%clk 00:06:58]}
{[%emt 00:02:54]} 15. Bb1 {[%clk 00:07:59]} {[%emt 00:05:01]} Nxe4 {[%clk
00:06:27]} {[%emt 00:00:41]} 16. Bxe4 {[%clk 00:08:07]} {[%emt 00:00:02]} Bf6
{[%clk 00:05:10]} {[%emt 00:01:28]} 17. Rfe1 {[%clk 00:07:49]} {[%emt
00:00:27]} Qh5 {[%clk 00:04:56]} {[%emt 00:00:24]} 18. Bb1 {[%clk 00:05:35]}
{[%emt 00:02:24]} Ne7 {[%clk 00:04:44]} {[%emt 00:00:22]} 19. d5 {[%clk
00:04:25]} {[%emt 00:01:20]} Rxd5 {[%clk 00:03:59]} {[%emt 00:00:56]} 20. Bxa7
{[%clk 00:04:15]} {[%emt 00:00:20]} Rxd1 {[%clk 00:03:14]} {[%emt 00:00:55]} 21.
Rxd1 {[%clk 00:04:08]} {[%emt 00:00:16]} Bc6 {[%clk 00:03:13]} {[%emt
00:00:11]} 22. Be4 {[%clk 00:03:57]} {[%emt 00:00:21]} Nd5 {[%clk 00:03:08]}
{[%emt 00:00:16]} 23. Be3 {[%clk 00:02:06]} {[%emt 00:02:01]} Nc3 {[%clk
00:02:27]} {[%emt 00:00:51]} 24. Bxh7+ {[%clk 00:01:52]} {[%emt 00:00:24]} Qxh7
{[%clk 00:02:03]} {[%emt 00:00:33]} 25. bxc3 {[%clk 00:01:59]} {[%emt
00:00:04]} Bxc3 {[%clk 00:02:10]} {[%emt 00:00:02]} 26. Qd3 {[%clk 00:01:10]}
{[%emt 00:00:58]} Qxd3 {[%clk 00:01:35]} {[%emt 00:00:46]} 27. Rxd3 {[%clk
00:01:19]} {[%emt 00:00:01]} Be4 {[%clk 00:01:25]} {[%emt 00:00:20]} 28. Rd1
{[%clk 00:01:06]} {[%emt 00:00:23]} Bb2 {[%clk 00:01:31]} {[%emt 00:00:05]} 29.
a4 {[%clk 00:01:10]} {[%emt 00:00:05]} Bc2 {[%clk 00:01:18]} {[%emt 00:00:22]}
30. Rd2 {[%clk 00:01:15]} {[%emt 00:00:06]} Bc1 {[%clk 00:01:23]} {[%emt
00:00:05]} 31. Rd4 {[%emt 00:01:47]} Ba3 {[%clk 00:00:20]} {[%emt 00:00:10]} 32.
h3 {[%clk 00:00:26]} {[%emt 00:00:26]} Bc5 {[%clk 00:00:13]} {[%emt 00:00:17]}
33. Rc4 {[%emt 00:00:23]} Ba3 {[%emt 00:00:06]} 34. Rd4 {[%emt 00:00:04]} Bc1
{[%clk 00:00:00]} {[%emt 00:00:06]} 1-0